bitfinex/quotes_SOLUSD_20250622
["timestamp","ask_amount","ask_price","bid_price","bid_amount"]
[1750589800629,5.61139347,133.31,133.24,70.91803672]
[1750589800822,6.62,133.32,133.24,70.91803672]
[1750589801029,5.61113092,133.31,133.24,70.91803672]
[1750589801227,6.62,133.32,133.24,70.91803672]
[1750589801228,14.12078682,133.32,133.24,70.91803672]
[1750589801428,5.61150895,133.31,133.24,70.91803672]
[1750589801729,5.61128453,133.3,133.24,70.91803672]
[1750589801932,5.61128453,133.31,133.24,70.91803672]
[1750589802136,5.61128453,133.3,133.24,70.91803672]
[1750589802430,5.61128453,133.31,133.24,70.91803672]
[1750589802633,14.1207549,133.32,133.24,70.91803672]
[1750589802634,5.61128453,133.3,133.24,70.91803672]
[1750589802843,14.1207549,133.32,133.24,70.91803672]
[1750589803025,5.61215827,133.31,133.24,70.91803672]
[1750589803226,5.61215827,133.3,133.24,70.91803672]
[1750589803448,14.1207549,133.32,133.24,70.91803672]
[1750589803449,5.61215827,133.29,133.24,70.91803672]
[1750589803649,5.61215827,133.31,133.24,70.91803672]
[1750589803851,5.61215827,133.3,133.24,70.91803672]
[1750589804051,5.61215827,133.29,133.24,70.91803672]
[1750589804249,5.61215827,133.31,133.24,70.91803672]
[1750589804549,5.61215827,133.3,133.24,70.91803672]
[1750589804755,5.61215827,133.29,133.24,70.91803672]
[1750589804929,21.13786352,133.32,133.24,70.91803672]
[1750589805135,5.61169798,133.31,133.24,70.91803672]
[1750589805440,5.61169798,133.3,133.24,26.15490253]
[1750589805641,5.61169798,133.29,133.24,26.15490253]
[1750589805845,5.61169798,133.28,133.24,26.15490253]
[1750589806035,7.01699505,133.31,133.24,26.15490253]
[1750589806348,5.61147205,133.3,133.24,26.15490253]
[1750589806547,7.01699505,133.31,133.24,26.15490253]
[1750589806548,5.61147205,133.29,133.24,26.15490253]
[1750589806731,5.61147205,133.28,133.24,26.15490253]
[1750589807047,5.61147205,133.3,133.24,26.15490253]
[1750589807256,5.61147205,133.29,133.24,26.15490253]
[1750589807431,5.61147205,133.28,133.24,26.15490253]
[1750589807638,5.61147205,133.3,133.24,26.15490253]
[1750589807840,5.61147205,133.29,133.24,26.15490253]
[1750589808137,5.61147205,133.28,133.24,26.15490253]
[1750589808349,5.61147205,133.3,133.24,26.15490253]
[1750589808542,5.61147205,133.29,133.24,26.15490253]
[1750589808746,5.61147205,133.28,133.24,26.15490253]
[1750589809049,5.60890229,133.3,133.24,26.15490253]
[1750589809242,5.60902959,133.29,133.24,26.15490253]
[1750589809556,5.60902959,133.28,133.24,26.15490253]
[1750589809847,5.60902959,133.3,133.24,26.15490253]
[1750589810028,5.60902959,133.29,133.24,26.15490253]
[1750589810228,5.60902959,133.28,133.24,26.15490253]
[1750589810427,5.60902959,133.31,133.24,26.15490253]
[1750589810649,5.60902959,133.3,133.24,26.15490253]
[1750589810930,5.60902959,133.29,133.24,26.15490253]
[1750589811129,5.60902959,133.31,133.24,26.15490253]
[1750589811330,5.60902959,133.3,133.24,26.15490253]
[1750589811554,5.60902959,133.29,133.24,26.15490253]
[1750589811749,12.22902959,133.31,133.26,18.64964886]
[1750589811951,6.62,133.31,133.26,18.64964886]
[1750589812664,6.62,133.31,133.26,44.64964886]
[1750589812839,6.62,133.31,133.28,18.64964886]
[1750589814830,6.62,133.31,133.3,18.64964886]
[1750589816952,6.62,133.31,133.3,7.50187546]
[1750589819056,6.62,133.31,133.3,18.64964886]
[1750589819960,6.62,133.31,133.3,7.50187546]
[1750589821962,6.62,133.31,133.3,18.64964886]
[1750589824250,6.62,133.31,133.3,26.15152432]
[1750589835883,6.62,133.31,133.26,7.50412726]
[1750589836061,5.60522862,133.3,133.27,18.64964886]
[1750589836370,5.60522862,133.29,133.27,26.1531922]
[1750589836553,5.60522862,133.3,133.27,26.1531922]
[1750589836755,5.60522862,133.29,133.27,26.1531922]
[1750589837079,5.60522862,133.28,133.24,18.64964886]
[1750589837391,39.79352945,133.31,133.24,18.64964886]
[1750589837392,5.60522862,133.3,133.24,18.64964886]
[1750589837556,5.60522862,133.3,133.23,7.505817]
[1750589837557,7.01699505,133.28,133.23,7.505817]
[1750589837750,5.60522862,133.27,133.23,7.505817]
[1750589837952,5.60522862,133.26,133.24,18.64964886]
[1750589838169,5.60522862,133.28,133.25,7.50469043]
[1750589838358,5.60522862,133.27,133.24,18.64964886]
[1750589838559,5.60522862,133.28,133.24,18.64964886]
[1750589838762,5.60522862,133.27,133.24,18.64964886]
[1750589838950,5.60522862,133.28,133.24,18.64964886]
[1750589839162,5.60522862,133.27,133.24,18.64964886]
[1750589839362,5.60522862,133.28,133.24,18.64964886]
[1750589839565,5.60522862,133.27,133.24,18.64964886]
[1750589839761,5.60522862,133.28,133.25,7.50469043]
[1750589840077,5.60522862,133.27,133.25,7.50469043]
[1750589840282,5.60522862,133.28,133.25,7.50469043]
[1750589840479,5.60522862,133.27,133.25,7.50469043]
[1750589840664,5.60522862,133.28,133.26,18.64964886]
[1750589840977,16.71091603,133.31,133.26,44.64964886]
[1750589841357,16.71091603,133.31,133.3,18.64964886]
[1750589841876,16.71091603,133.31,133.3,26.15152432]
[1750589853003,6.6,133.33,133.32,44.64964886]
[1750589853479,6.6,133.33,133.32,52.15039893]
[1750589854492,6.6,133.33,133.32,26.15039893]
[1750589855201,6.6,133.33,133.32,7.50075007]
[1750589856896,6.6,133.33,133.31,7.501121]
[1750589856897,12.19506528,133.33,133.31,7.501121]
[1750589857105,6.6,133.33,133.31,7.501121]
[1750589857577,12.19506528,133.33,133.31,18.64964886]
[1750589857783,6.6,133.33,133.31,18.64964886]
[1750589858300,12.19506528,133.33,133.31,18.64964886]
[1750589858491,6.6,133.33,133.31,18.64964886]
[1750589858686,6.6,133.33,133.32,7.50075007]
[1750589860600,6.6,133.33,133.31,18.64964886]
[1750589861589,6.6,133.33,133.32,7.50075007]
[1750589862695,6.6,133.33,133.31,18.64964886]
[1750589863883,6.6,133.33,133.31,7.50075435]
[1750589866008,6.6,133.33,133.3,26.25656413]
[1750589866514,6.6,133.33,133.31,18.64964886]
[1750589867014,6.6,133.33,133.32,7.50075007]
[1750589868109,6.6,133.33,133.32,26.15039893]
[1750589882830,1.8528,133.37,133.33,18.64964886]
[1750589883714,7.45042108,133.37,133.33,18.64964886]
[1750589883920,5.59762108,133.36,133.33,18.64964886]
[1750589884735,1.8528,133.37,133.34,7.49962501]
[1750589884929,5.60555014,133.36,133.34,7.49962501]
[1750589885227,1.8528,133.37,133.34,7.49962501]
[1750589885533,5.60554705,133.36,133.34,7.49962501]
[1750589885708,5.60554705,133.35,133.34,26.14927387]
[1750589886031,5.60554705,133.36,133.35,18.64964886]
[1750589887221,5.60554705,133.36,133.35,7.49906261]
[1750589889434,5.60554705,133.36,133.34,7.49962501]
[1750589889627,1.8528,133.37,133.34,7.49962501]
[1750589889813,5.60958763,133.36,133.34,7.49962501]
[1750589890015,1.8528,133.37,133.34,7.49962501]
[1750589890316,5.60958763,133.36,133.34,7.49962501]
[1750589890516,1.8528,133.37,133.34,7.49962501]
[1750589890723,5.60961386,133.36,133.34,7.49962501]
[1750589890921,1.8528,133.37,133.34,7.49962501]
[1750589891214,5.60955188,133.36,133.34,7.49962501]
[1750589891423,1.8528,133.37,133.34,7.49962501]
[1750589891728,5.60952565,133.36,133.34,7.49962501]
[1750589891925,1.8528,133.37,133.34,7.49962501]
[1750589892130,5.60950822,133.36,133.34,7.49962501]
[1750589892334,1.8528,133.37,133.34,7.49962501]
[1750589892536,5.60950822,133.36,133.34,7.49962501]
[1750589892724,1.8528,133.37,133.34,7.49962501]
[1750589892925,5.60964954,133.36,133.34,7.49962501]
[1750589893135,1.8528,133.37,133.34,7.49962501]
[1750589893325,5.60964954,133.36,133.34,7.49962501]
[1750589893638,1.8528,133.37,133.34,7.49962501]
[1750589893839,5.60961509,133.36,133.34,7.49962501]
[1750589894039,1.8528,133.37,133.34,7.49962501]
[1750589894240,5.60982353,133.36,133.34,7.49962501]
[1750589894442,1.8528,133.37,133.34,7.49962501]
[1750589894635,5.60984908,133.36,133.34,7.49962501]
[1750589894834,1.8528,133.37,133.34,7.49962501]
[1750589895035,5.60985988,133.36,133.34,7.49962501]
[1750589895337,1.8528,133.37,133.34,7.49962501]
[1750589895522,5.60984676,133.36,133.34,7.49962501]
[1750589895724,1.8528,133.37,133.35,26.14818377]
[1750589895919,5.60981826,133.36,133.35,26.14818377]
[1750589896138,5.60981826,133.37,133.35,26.14818377]
[1750589896343,5.60981826,133.36,133.35,26.14818377]
[1750589896530,5.60981826,133.37,133.35,26.14818377]
[1750589896729,5.60981826,133.36,133.35,26.14818377]
[1750589897722,5.60981826,133.37,133.35,26.14818377]
[1750589897929,5.60981826,133.36,133.35,26.14818377]
[1750589898142,5.60981826,133.37,133.35,26.14818377]
[1750589898348,6.58,133.38,133.35,26.14818377]
[1750589898628,5.60892383,133.37,133.35,26.14818377]
[1750589898834,6.58,133.38,133.35,26.14818377]
[1750589899028,5.60857657,133.37,133.35,26.14818377]
[1750589899227,6.58,133.38,133.35,26.14818377]
[1750589899549,5.60857657,133.37,133.35,26.14818377]
[1750589899745,6.58,133.38,133.35,26.14818377]
[1750589899945,5.60819064,133.37,133.35,26.14818377]
[1750589900125,6.58,133.38,133.35,26.14818377]
[1750589900324,5.60819064,133.37,133.35,26.14818377]
[1750589900520,5.60854454,133.36,133.35,26.14818377]
[1750589905942,5.60854454,133.36,133.35,7.49853491]
[1750589906144,5.60854454,133.36,133.34,18.64964886]
[1750589906451,5.60854454,133.35,133.34,18.64964886]
[1750589907669,5.60854454,133.35,133.3,18.75455924]
[1750589907962,12.62553959,133.34,133.3,7.50187546]
[1750589908267,5.60854454,133.33,133.3,7.50187546]
[1750589908567,12.18854454,133.32,133.3,7.50187546]
[1750589908760,5.60854454,133.31,133.3,26.15152432]
[1750589910845,5.60854454,133.31,133.3,7.50187546]
[1750589913359,6.58,133.32,133.3,7.50187546]
[1750589914239,12.18897475,133.32,133.3,7.50187546]
[1750589914450,6.58,133.32,133.3,7.50187546]
[1750589915774,5.60779965,133.31,133.3,7.50187546]
[1750589916286,6.58,133.32,133.3,7.50187546]
[1750589917175,12.18684555,133.32,133.3,7.50187546]
[1750589917382,6.58,133.32,133.3,7.50187546]
[1750589917746,12.18684555,133.32,133.3,7.50187546]
[1750589917951,6.58,133.32,133.3,7.50187546]
[1750589918471,12.18684555,133.32,133.3,7.50187546]
[1750589918657,6.58,133.32,133.3,7.50187546]
[1750589918856,6.58,133.32,133.31,18.64964886]
[1750589919649,6.58,133.32,133.31,7.50131272]
[1750589921664,6.58,133.32,133.31,18.64964886]
[1750589922770,6.58,133.32,133.31,7.50131272]
[1750589931694,6.58,133.32,133.31,26.15096158]
[1750589932063,12.16684555,133.36,133.31,44.9042434]
[1750589932370,5.60684555,133.35,133.31,44.9042434]
[1750589932677,6.56,133.36,133.31,44.9042434]
[1750589932876,5.60526982,133.35,133.31,44.9042434]
[1750589933062,5.60525677,133.35,133.31,44.9042434]
[1750589934658,5.60548138,133.35,133.31,44.9042434]
[1750589935284,6.56,133.36,133.31,44.9042434]
[1750589935488,5.60562318,133.35,133.31,44.9042434]
[1750589935794,6.56,133.36,133.31,44.9042434]
[1750589936081,5.60567591,133.35,133.31,44.9042434]
[1750589939183,12.16567591,133.36,133.32,18.64964886]
[1750589939380,6.56,133.36,133.32,18.64964886]
[1750589939982,12.16559663,133.36,133.32,18.64964886]
[1750589940170,6.56,133.36,133.32,18.64964886]
[1750589940376,12.16559663,133.36,133.32,18.64964886]
[1750589940561,6.56,133.36,133.34,18.64964886]
[1750589940783,12.16559663,133.36,133.34,18.64964886]
[1750589941084,6.56,133.36,133.34,18.64964886]
[1750589941386,12.16559663,133.36,133.34,18.64964886]
[1750589941585,6.56,133.36,133.34,18.64964886]
[1750589941784,12.16559663,133.36,133.35,26.14871147]
[1750589941963,6.56,133.36,133.35,26.14871147]
[1750589942162,12.16559663,133.36,133.35,26.14871147]
[1750589942471,6.56,133.36,133.35,26.14871147]
[1750589949993,6.56,133.36,133.35,7.49906261]
[1750589950175,12.16471204,133.36,133.32,18.64964886]
[1750589950374,5.60471204,133.35,133.32,18.64964886]
[1750589950897,5.60471204,133.34,133.32,18.64964886]
[1750589951076,5.60471204,133.33,133.32,18.64964886]
[1750589951272,5.60471204,133.35,133.32,18.64964886]
[1750589951477,5.60471204,133.34,133.32,18.64964886]
[1750589951691,6.56,133.36,133.32,18.64964886]
[1750589951892,5.60635754,133.35,133.33,7.5001875]
[1750589952096,5.60635754,133.34,133.33,7.5001875]
[1750589955400,5.60635754,133.34,133.3,7.50187546]
[1750589955698,5.60635754,133.33,133.3,7.50187546]
[1750589955885,14.05888701,133.36,133.3,7.50187546]
[1750589955886,5.60635754,133.32,133.3,7.50187546]
[1750589956076,5.60938641,133.35,133.3,7.50187546]
[1750589956278,5.60947954,133.34,133.3,7.50187546]
[1750589956577,5.60933044,133.33,133.3,7.50187546]
[1750589956794,13.57166306,133.36,133.3,7.50187546]
[1750589956795,5.60972167,133.35,133.31,18.64964886]
[1750589956984,5.60972167,133.34,133.31,18.64964886]
[1750589957300,5.60972167,133.33,133.31,18.64964886]
[1750589957599,6.56,133.36,133.31,18.64964886]
[1750589957778,5.61083567,133.35,133.31,18.64964886]
[1750589957981,5.61083567,133.34,133.31,18.64964886]
[1750589958196,6.56,133.36,133.31,18.64964886]
[1750589958388,5.61082671,133.35,133.31,18.64964886]
[1750589958594,5.61082671,133.34,133.32,7.50075007]
[1750589958776,6.56,133.36,133.32,7.50075007]
[1750589958981,5.61075151,133.35,133.32,7.50075007]
[1750589959202,5.61075151,133.34,133.32,7.50075007]
[1750589959404,6.56,133.36,133.32,7.50075007]
[1750589959707,5.61095866,133.35,133.32,7.50075007]
[1750589959883,5.61095866,133.34,133.32,7.50075007]
[1750589960085,5.61095866,133.33,133.32,7.50075007]
[1750589960294,5.61095866,133.35,133.32,7.50075007]
[1750589960496,5.61095866,133.34,133.32,7.50075007]
[1750589960687,5.61231612,133.33,133.32,26.15039893]
[1750589961004,6.56,133.36,133.32,26.15039893]
[1750589961005,5.61231612,133.35,133.32,26.15039893]
[1750589961299,5.61231612,133.34,133.32,26.15039893]
[1750589961501,6.56,133.36,133.33,18.64964886]
[1750589961709,5.6129242,133.35,133.33,18.64964886]
[1750589961881,12.15242638,133.37,133.33,18.64964886]
[1750589962082,5.61242638,133.36,133.34,7.49962501]
[1750589962296,6.54,133.37,133.34,7.49962501]
[1750589962492,5.61173556,133.36,133.34,7.49962501]
[1750589962691,6.54,133.37,133.34,7.49962501]
[1750589962899,5.6125874,133.36,133.34,7.49962501]
[1750589963101,6.54,133.37,133.34,7.49962501]
[1750589963302,5.61263702,133.36,133.35,18.64964886]
[1750589964202,5.61263702,133.36,133.35,7.49906261]
[1750589964399,6.54,133.37,133.35,7.49906261]
[1750589965100,6.54,133.37,133.35,26.14871147]
[1750589967209,6.54,133.37,133.36,18.64964886]
[1750589967411,12.15062728,133.37,133.36,18.64964886]
[1750589968391,12.15062728,133.37,133.36,26.14814915]
[1750589969490,6.54,133.37,133.36,26.14814915]
[1750589969990,5.6089611,133.38,133.36,44.89439989]
[1750589970209,27.1949648,133.39,133.38,44.64964886]
[1750589970721,6.54,133.42,133.39,18.64964886]
[1750589971021,6.54,133.42,133.39,18.14698686]
[1750589972302,6.54,133.42,133.4,7.49625187]
[1750589974722,6.54,133.42,133.41,18.64964886]
[1750589974900,40.54,133.46,133.41,18.64964886]
[1750589975306,8.4125,133.49,133.41,44.64964886]
[1750589975525,6.54,133.49,133.45,18.64964886]
[1750589975701,6.54,133.49,133.47,18.64964886]
[1750589976426,6.54,133.49,133.46,7.49288176]
[1750589977197,6.54,133.49,133.4,9.2356]
[1750589977498,32.54,133.49,133.42,18.64964886]
[1750589977694,32.54,133.49,133.43,7.49456643]
[1750589977695,40.03122851,133.49,133.43,7.49456643]
[1750589977918,1.8725,133.48,133.43,7.49456643]
[1750589978119,7.6914,133.47,133.43,7.49456643]
[1750589978312,7.6914,133.47,133.41,18.64964886]
[1750589978916,13.27493091,133.47,133.41,18.64964886]
[1750589979227,13.27493091,133.47,133.42,7.49512816]
[1750589979524,26.0,133.46,133.39,18.64964886]
[1750589979909,31.58353091,133.46,133.39,18.64964886]
[1750589980621,31.58353091,133.46,133.4,7.49625187]
[1750589981132,39.07645125,133.46,133.4,7.49625187]
[1750589981625,1.8725,133.45,133.4,7.49625187]
[1750589982403,7.45603091,133.45,133.4,7.49625187]
[1750589982604,1.8725,133.45,133.4,7.49625187]
[1750589982917,9.3659626,133.45,133.4,7.49625187]
[1750589983126,26.0,133.42,133.35,18.7463346]
[1750589983301,32.52,133.42,133.36,18.64964886]
[1750589984115,40.2114,133.42,133.36,26.14814915]
[1750589984310,1.8725,133.41,133.36,26.14814915]
[1750589990210,1.8725,133.41,133.36,44.89439989]
[1750589994639,1.8725,133.41,133.36,7.49850029]
[1750589995228,1.8725,133.41,133.35,26.14871147]
[1750589998718,1.8725,133.41,133.35,44.89636801]
[1750590000935,7.44863839,133.41,133.35,44.89636801]
[1750590001934,7.1261,133.4,133.35,26.14871147]
[1750590002142,12.70223839,133.4,133.35,26.14871147]
[1750590002352,5.57613839,133.39,133.35,44.89636801]
[1750590002639,6.52,133.42,133.35,72.78556801]
[1750590003055,6.52,133.42,133.35,70.89636801]
[1750590004134,6.52,133.42,133.35,108.39168109]
[1750590004338,12.10554451,133.42,133.35,108.39168109]
[1750590004526,6.52,133.42,133.35,108.39168109]
[1750590004723,12.10554451,133.42,133.35,108.39168109]
[1750590005023,6.52,133.42,133.35,108.39168109]
[1750590005223,12.10554451,133.42,133.35,108.39168109]
[1750590005438,6.52,133.42,133.35,108.39168109]
[1750590005744,12.10554451,133.42,133.35,44.64964886]
[1750590005925,6.52,133.42,133.35,44.64964886]
[1750590006123,12.10554451,133.42,133.35,44.64964886]
[1750590006324,6.52,133.42,133.35,44.64964886]
[1750590006525,12.10554451,133.42,133.35,44.64964886]
[1750590006726,6.52,133.42,133.35,44.64964886]
[1750590006927,12.10554451,133.42,133.35,44.64964886]
[1750590007144,6.52,133.42,133.35,44.64964886]
[1750590007348,12.10554451,133.42,133.35,44.64964886]
[1750590007540,6.52,133.42,133.35,44.64964886]
[1750590007741,12.10554451,133.42,133.35,44.64964886]
[1750590007933,6.52,133.42,133.35,44.64964886]
[1750590008245,12.10554451,133.42,133.35,44.64964886]
[1750590008458,6.52,133.42,133.35,44.64964886]
[1750590008633,6.52,133.42,133.39,18.64964886]
[1750590009926,6.52,133.42,133.35,18.64964886]
[1750590010320,12.10554451,133.42,133.35,18.64964886]
[1750590010553,6.52,133.42,133.35,18.64964886]
[1750590010847,6.52,133.42,133.35,44.64964886]
[1750590013543,6.52,133.42,133.35,51.71404886]
[1750590014053,6.52,133.42,133.39,18.64964886]
[1750590015644,6.52,133.42,133.32,8.9627]
[1750590015645,1.9194,133.41,133.32,8.9627]
[1750590015826,7.50494451,133.41,133.31,18.64964886]
[1750590016027,5.58554451,133.4,133.31,18.64964886]
[1750590016352,5.58554451,133.4,133.35,18.64964886]
[1750590017830,5.58554451,133.4,133.34,18.64964886]
[1750590018035,6.52,133.4,133.34,18.64964886]
[1750590019434,12.10554451,133.4,133.34,18.64964886]
[1750590019634,6.52,133.4,133.34,18.64964886]
[1750590019852,7.50494451,133.41,133.34,18.64964886]
[1750590020246,7.50494451,133.41,133.34,44.64964886]
[1750590020430,1.9194,133.41,133.34,44.64964886]
[1750590021554,1.9194,133.41,133.38,18.64964886]
[1750590024363,6.52,133.42,133.38,18.64964886]
[1750590029060,12.12265323,133.42,133.38,18.64964886]
[1750590029261,6.52,133.42,133.38,18.64964886]
[1750590030974,6.52,133.42,133.31,6.52]
[1750590030975,7.42414171,133.41,133.31,6.52]
[1750590031194,5.60314171,133.4,133.31,18.64964886]
[1750590031479,5.60314171,133.39,133.32,26.0]
[1750590031693,5.60314171,133.38,133.33,18.64964886]
[1750590031980,5.60481616,133.37,133.33,18.64964886]
[1750590032189,5.60481616,133.4,133.33,18.64964886]
[1750590032351,5.60481616,133.39,133.33,18.64964886]
[1750590032552,5.60481616,133.38,133.33,18.64964886]
[1750590032774,5.60481616,133.37,133.33,18.64964886]
[1750590032965,5.60481616,133.4,133.33,18.64964886]
[1750590033287,5.60481616,133.39,133.33,18.64964886]
[1750590033581,8.83266306,133.41,133.33,18.64964886]
[1750590033582,5.60360194,133.38,133.33,18.64964886]
[1750590033756,8.82550242,133.41,133.33,18.64964886]
[1750590033958,5.60362454,133.4,133.33,18.64964886]
[1750590034164,5.60362454,133.39,133.33,18.64964886]
[1750590034364,5.60362454,133.38,133.33,18.64964886]
[1750590034573,8.82550242,133.41,133.33,18.64964886]
[1750590034786,5.60325383,133.4,133.33,18.64964886]
[1750590034977,5.60325383,133.39,133.33,18.64964886]
[1750590035175,5.60325383,133.38,133.33,18.64964886]
[1750590035384,8.82550242,133.41,133.33,18.64964886]
[1750590035385,5.60325383,133.4,133.33,18.64964886]
[1750590035587,5.60325383,133.39,133.33,18.64964886]
[1750590035789,5.60325383,133.38,133.33,18.64964886]
[1750590035992,5.60325383,133.37,133.33,18.64964886]
[1750590036183,5.60325383,133.4,133.33,18.64964886]
[1750590036387,5.60325383,133.39,133.33,18.64964886]
[1750590036585,5.60325383,133.38,133.33,18.64964886]
[1750590036782,5.60325383,133.4,133.33,18.64964886]
[1750590036993,7.42425383,133.41,133.37,18.64964886]
[1750590037167,1.821,133.41,133.37,18.64964886]
[1750590038078,13.92425383,133.45,133.37,18.64964886]
[1750590038279,8.321,133.45,133.41,18.64964886]
[1750590038468,13.92425383,133.45,133.41,18.64964886]
[1750590038669,8.321,133.45,133.41,18.64964886]
[1750590038869,13.92425383,133.45,133.41,18.64964886]
[1750590039070,8.321,133.45,133.41,18.64964886]
[1750590039371,13.92425383,133.45,133.41,18.64964886]
[1750590039569,8.321,133.45,133.41,18.64964886]
[1750590039783,13.92425383,133.45,133.41,18.64964886]
[1750590039994,8.321,133.45,133.41,18.64964886]
[1750590040287,13.92425383,133.45,133.41,18.64964886]
[1750590040494,5.60325383,133.44,133.35,18.64964886]
[1750590040697,5.60325383,133.43,133.35,18.64964886]
[1750590040902,5.60325383,133.42,133.35,18.64964886]
[1750590041088,5.60325383,133.44,133.32,18.64964886]
[1750590041268,5.60325383,133.43,133.36,18.64964886]
[1750590041474,5.60325383,133.42,133.36,18.64964886]
[1750590041688,5.60325383,133.41,133.36,18.64964886]
[1750590041877,5.60325383,133.44,133.36,18.64964886]
[1750590042195,5.60325383,133.43,133.36,18.64964886]
[1750590042400,5.60325383,133.42,133.36,18.64964886]
[1750590042586,5.60325383,133.41,133.36,18.64964886]
[1750590042889,5.60325383,133.43,133.36,18.64964886]
[1750590043089,5.60325383,133.42,133.36,18.64964886]
[1750590043407,5.60325383,133.41,133.36,18.64964886]
[1750590043581,5.60325383,133.43,133.36,18.64964886]
[1750590043901,5.60325383,133.42,133.36,18.64964886]
[1750590044109,5.60325383,133.41,133.36,18.64964886]
[1750590044399,5.60325383,133.43,133.36,18.64964886]
[1750590044695,5.60325383,133.42,133.4,18.64964886]
[1750590044897,5.60325383,133.44,133.4,18.64964886]
[1750590045074,5.60325383,133.43,133.4,18.64964886]
[1750590045274,5.60325383,133.44,133.4,18.64964886]
[1750590046197,5.60325383,133.43,133.4,18.64964886]
[1750590046396,5.60325383,133.44,133.4,18.64964886]
[1750590046579,5.60325383,133.43,133.4,18.64964886]
[1750590046781,5.60325383,133.44,133.4,18.64964886]
[1750590046980,5.60325383,133.43,133.4,18.64964886]
[1750590047302,5.60325383,133.44,133.4,18.64964886]
[1750590047512,5.60325383,133.43,133.4,18.64964886]
[1750590047683,5.60325383,133.44,133.4,18.64964886]
[1750590047999,5.60325383,133.43,133.4,18.64964886]
[1750590048189,5.60325383,133.44,133.4,18.64964886]
[1750590048392,5.60012607,133.44,133.4,18.64964886]
[1750590049602,8.321,133.45,133.4,18.64964886]
[1750590049897,5.59986915,133.44,133.4,18.64964886]
[1750590050083,5.59986915,133.43,133.4,18.64964886]
[1750590050399,5.59986915,133.44,133.4,18.64964886]
[1750590050606,5.59986915,133.43,133.4,18.64964886]
[1750590050773,5.59986915,133.44,133.4,18.64964886]
[1750590050974,5.59986915,133.43,133.4,18.64964886]
[1750590051275,5.59986915,133.44,133.4,18.64964886]
[1750590051480,5.59986915,133.43,133.4,18.64964886]
[1750590051794,5.59986915,133.44,133.4,18.64964886]
[1750590052097,5.59986915,133.43,133.4,18.64964886]
[1750590052402,5.59986915,133.44,133.4,18.64964886]
[1750590054483,8.321,133.45,133.4,18.64964886]
[1750590054804,5.5997051,133.44,133.4,18.64964886]
[1750590055004,5.59971976,133.43,133.4,18.64964886]
[1750590055299,8.321,133.45,133.4,18.64964886]
[1750590055300,5.59971976,133.44,133.4,18.64964886]
[1750590055496,8.321,133.45,133.4,18.64964886]
[1750590055699,5.59959229,133.44,133.4,18.64964886]
[1750590055919,8.321,133.45,133.4,18.64964886]
[1750590056209,5.59968417,133.44,133.4,18.64964886]
[1750590056412,5.59968417,133.43,133.4,18.64964886]
[1750590056715,5.59968417,133.44,133.4,18.64964886]
[1750590056915,5.59968417,133.43,133.4,18.64964886]
[1750590057092,5.59968417,133.44,133.4,18.64964886]
[1750590057416,8.321,133.45,133.4,18.64964886]
[1750590057587,5.59936994,133.44,133.4,18.64964886]
[1750590057786,8.321,133.45,133.4,18.64964886]
[1750590058003,5.59934444,133.44,133.4,18.64964886]
[1750590058308,5.59917691,133.44,133.4,18.64964886]
[1750590058775,8.321,133.45,133.4,18.64964886]
[1750590058975,5.59920086,133.44,133.4,18.64964886]
[1750590059181,5.59920086,133.43,133.4,18.64964886]
[1750590059408,5.59920086,133.44,133.4,18.64964886]
[1750590059705,5.59920086,133.43,133.4,18.64964886]
[1750590059908,5.59920086,133.44,133.4,18.64964886]
[1750590060204,5.59920086,133.43,133.4,18.64964886]
[1750590060514,5.59920086,133.44,133.4,18.64964886]
[1750590060684,5.59920086,133.43,133.4,18.64964886]
[1750590060876,5.59920086,133.44,133.4,18.64964886]
[1750590061079,5.59920086,133.43,133.4,18.64964886]
[1750590061312,5.59920086,133.44,133.4,18.64964886]
[1750590061485,5.59920086,133.43,133.4,18.64964886]
[1750590061688,5.59920086,133.44,133.4,18.64964886]
[1750590061889,5.59920086,133.43,133.4,18.64964886]
[1750590062082,5.59920086,133.44,133.4,18.64964886]
[1750590062287,5.59920086,133.43,133.4,18.64964886]
[1750590062609,5.59920086,133.44,133.4,18.64964886]
[1750590062811,5.59920086,133.43,133.4,18.64964886]
[1750590062987,5.59920086,133.44,133.4,18.64964886]
[1750590063191,8.321,133.45,133.4,18.64964886]
[1750590063387,12.09920086,133.45,133.4,18.64964886]
[1750590063586,12.09920086,133.45,133.44,18.64964886]
[1750590063587,6.5,133.45,133.44,18.64964886]
[1750590063911,19.96009746,133.47,133.44,18.64964886]
[1750590065795,19.96009746,133.47,133.46,44.64964886]
[1750590066731,19.96009746,133.47,133.41,18.64964886]
[1750590066891,19.96009746,133.47,133.41,44.64964886]
[1750590067085,19.96009746,133.47,133.45,18.64964886]
[1750590068191,19.96009746,133.47,133.4,1.9019]